bitfinex/quotes_ETHUSD_20250703
["timestamp","ask_amount","ask_price","bid_price","bid_amount"]
[1751573697627,19.929,2594.6,2594.3,0.257]
[1751573699353,19.929,2594.6,2594.3,4.11158737]
[1751573700560,14.04624009,2594.6,2594.3,0.257]
[1751573700846,9.738,2594.5,2594.3,0.257]
[1751573701049,1.911,2594.5,2594.3,0.257]
[1751573701252,7.827,2594.4,2594.3,0.257]
[1751573702119,7.827,2594.4,2594.3,4.11160432]
[1751573702318,7.827,2594.4,2594.3,0.257]
[1751573702748,7.827,2594.4,2594.3,4.11160432]
[1751573703047,9.736,2594.5,2594.3,4.11160432]
[1751573703554,0.192,2594.6,2594.3,4.11160432]
[1751573703722,9.735,2594.5,2594.3,0.257]
[1751573704223,1.911,2594.5,2594.3,4.11158496]
[1751573705023,9.926,2594.6,2594.3,4.1115999]
[1751573705331,9.926,2594.6,2594.3,0.257]
[1751573705861,1.911,2594.5,2594.3,4.11151588]
[1751573707253,0.192,2594.6,2594.3,4.11151588]
[1751573707442,9.925,2594.6,2594.3,4.11151588]
[1751573709518,8.013,2594.6,2594.3,4.11151588]
[1751573709734,9.924,2594.6,2594.3,4.11151588]
[1751573710252,9.934,2594.6,2594.3,4.11151588]
[1751573712058,9.934,2594.6,2594.4,3.85444468]
[1751573712459,9.927,2594.6,2594.4,3.85444468]
[1751573713582,9.927,2594.6,2594.3,0.257]
[1751573713583,9.927,2594.6,2594.3,4.11151792]
[1751573713884,0.202,2594.6,2594.3,4.11154519]
[1751573714044,2.11,2594.6,2594.3,4.11152255]
[1751573714243,0.202,2594.6,2594.5,0.257]
[1751573714450,0.01,2594.6,2594.5,4.11130718]
[1751573714779,0.01,2594.6,2594.5,0.257]
[1751573718594,0.01,2594.6,2594.3,4.3035232]
[1751573719486,0.01,2594.6,2594.3,0.449]
[1751573719993,0.01,2594.6,2594.3,4.3035681]
[1751573720292,1.917,2594.6,2594.3,4.3035681]
[1751573720691,0.01,2594.6,2594.4,3.85445443]
[1751573724369,0.01,2594.6,2594.5,3.85430718]
[1751573725092,0.01,2594.6,2594.4,3.85438617]
[1751573725393,0.01,2594.6,2594.3,4.30353715]
[1751573726104,0.01,2594.6,2594.4,3.85444927]
[1751573731207,0.01,2594.6,2594.5,3.85430718]
[1751573733586,0.01,2594.6,2594.5,4.11130718]
[1751573757445,0.01,2594.6,2594.5,0.257]
[1751573757756,0.01,2594.6,2594.4,0.192]
[1751573757942,0.01,2594.6,2594.2,3.85474401]
[1751573757943,4.05622196,2594.6,2594.2,3.85474401]
[1751573758318,4.05622196,2594.6,2594.1,8.81681141]
[1751573758548,0.58128472,2594.5,2594.1,8.81681141]
[1751573758742,0.58128472,2594.5,2594.1,8.81683528]
[1751573759558,0.58128472,2594.5,2594.2,3.85472393]
[1751573760348,0.58128472,2594.5,2594.1,8.81681534]
[1751573760745,0.58128472,2594.5,2594.1,0.192]
[1751573760746,4.43561759,2594.5,2594.1,0.192]
[1751573760947,1.23854476,2594.4,2594.1,0.192]
[1751573761147,5.0930889,2594.4,2594.0,0.02]
[1751573761445,5.0930889,2594.4,2594.0,4.06703643]
[1751573761446,5.2850889,2594.4,2594.0,4.06703643]
[1751573761649,5.2850889,2594.4,2594.0,0.212]
[1751573761650,3.85461675,2594.3,2594.0,0.212]
[1751573761947,0.91397057,2594.3,2594.0,0.212]
[1751573762116,4.82136168,2594.4,2594.0,0.212]
[1751573762315,3.85460992,2594.3,2594.0,0.212]
[1751573762758,4.82134399,2594.4,2594.0,0.212]
[1751573763851,4.82134399,2594.4,2594.0,4.06703925]
[1751573764035,0.9668,2594.4,2594.0,4.06703925]
[1751573764252,0.9668,2594.4,2594.0,4.76703925]
[1751573764851,4.82126926,2594.4,2594.0,4.76703925]
[1751573765051,6.56197097,2594.4,2594.0,4.76703925]
[1751573765252,6.56197097,2594.4,2594.0,0.912]
[1751573765653,3.85463125,2594.3,2594.0,0.912]
[1751573765860,2.70750171,2594.4,2594.0,0.912]
[1751573766155,2.70750171,2594.4,2594.0,0.02]
[1751573766156,4.6880015,2594.1,2594.0,0.02]
[1751573766732,5.61200629,2594.1,2594.0,0.02]
[1751573767425,4.6880015,2594.1,2594.0,0.02]
[1751573772055,5.2380015,2594.1,2594.0,0.02]
[1751573774536,4.6880015,2594.1,2594.0,0.02]
[1751573774743,5.56935196,2594.1,2594.0,0.02]
[1751573774944,12.29070171,2594.4,2594.0,0.02]
[1751573774945,2.50960171,2594.4,2594.0,0.02]
[1751573775143,13.74372242,2594.3,2594.0,0.02]
[1751573775664,1.899,2594.2,2594.0,0.02]
[1751573775837,5.75375978,2594.2,2594.0,0.02]
[1751573776363,3.8549015,2594.1,2594.0,0.02]
[1751573776556,5.75381805,2594.2,2594.0,0.02]
[1751573777076,3.85481805,2594.2,2594.0,0.02]
[1751573777237,5.75381805,2594.2,2594.0,0.02]
[1751573777568,1.899,2594.2,2594.0,0.02]
[1751573777769,5.75378903,2594.2,2594.0,0.02]
[1751573777942,3.8549015,2594.1,2594.0,0.02]
[1751573778571,6.61555998,2594.1,2594.0,0.02]
[1751573781040,2.76065848,2594.1,2594.0,0.02]
[1751573781238,14.41355998,2594.1,2594.0,0.02]
[1751573781780,6.61555998,2594.1,2594.0,0.02]
[1751573781961,14.5527015,2594.1,2594.0,0.02]
[1751573784358,4.8557015,2594.1,2594.0,0.02]
[1751573784671,14.5527015,2594.1,2594.0,0.02]
[1751573785171,4.8557015,2594.1,2594.0,0.02]
[1751573785361,14.5527015,2594.1,2594.0,0.02]
[1751573785567,17.31651232,2594.1,2594.0,0.02]
[1751573785769,27.86651232,2594.1,2594.0,0.02]
[1751573789594,27.87651232,2594.1,2594.0,0.02]
[1751573790279,15.19265011,2594.0,2593.9,0.02]
[1751573790458,19.96460777,2594.0,2593.9,0.02]
[1751573790788,13.85519873,2593.9,2593.8,0.02]
[1751573790983,23.36386391,2593.9,2593.8,0.02]
[1751573791589,31.68854232,2593.9,2593.8,0.02]
[1751573792693,27.50608458,2593.9,2593.8,0.02]
[1751573792894,35.21017579,2593.9,2593.8,0.02]
[1751573798468,13.85552802,2593.7,2593.5,0.02]
[1751573798683,21.69098825,2593.6,2593.5,0.02]
[1751573798884,31.69098825,2593.6,2593.5,0.02]
[1751573799105,35.53988073,2593.6,2593.5,0.02]
[1751573800482,36.08988073,2593.6,2593.5,0.02]
[1751573801390,3.85579332,2593.5,2593.2,0.02]
[1751573801599,3.85579332,2593.5,2593.4,1e-08]
[1751573801600,8.0571585,2593.5,2593.4,1e-08]
[1751573801802,11.90605098,2593.5,2593.4,1e-08]
[1751573803316,31.17205098,2593.5,2593.4,1e-08]
[1751573804009,4.4063881,2593.1,2592.9,0.02]
[1751573804211,22.9958881,2593.1,2592.9,0.02]
[1751573804436,27.54822349,2593.1,2592.9,0.02]
[1751573804813,19.74822349,2593.1,2592.9,0.02]
[1751573805024,28.65772349,2593.1,2592.9,0.02]
[1751573805907,29.44722349,2593.1,2592.9,0.02]
[1751573807453,28.65772349,2593.1,2592.9,0.02]
[1751573808154,27.73465831,2593.1,2592.9,0.02]
[1751573808347,28.65661298,2593.1,2592.9,0.02]
[1751573808639,27.73465831,2593.1,2592.9,0.02]
[1751573809041,25.83565831,2593.1,2592.9,0.02]
[1751573809356,27.73565831,2593.1,2592.9,0.02]
[1751573810743,18.03565831,2593.1,2592.9,0.02]
[1751573811052,24.1053881,2593.1,2592.9,0.02]
[1751573811244,14.4063881,2593.1,2592.9,0.02]
[1751573811443,23.5563881,2593.1,2592.9,0.02]
[1751573811651,13.5563881,2593.1,2592.9,0.02]
[1751573815852,14.1063881,2593.1,2592.9,0.02]
[1751573816361,15.02962684,2593.1,2592.9,0.02]
[1751573821554,2.82223874,2593.1,2592.9,0.02]
[1751573821732,2.0918,2593.1,2593.0,0.277]
[1751573821932,9.8928,2593.1,2593.0,0.277]
[1751573822645,13.7491881,2593.1,2593.0,0.277]
[1751573823231,9.8928,2593.1,2593.0,0.277]
[1751573824567,2.0918,2593.1,2593.0,0.277]
[1751573824734,9.8928,2593.1,2593.0,0.277]
[1751573826172,13.7491881,2593.1,2593.0,0.277]
[1751573826536,9.8928,2593.1,2593.0,0.277]
[1751573826865,9.8918,2593.1,2593.0,0.277]
[1751573827167,13.7481881,2593.1,2593.0,0.277]
[1751573827570,9.8918,2593.1,2593.0,0.277]
[1751573828673,0.1928,2593.1,2593.0,0.277]
[1751573828875,7.9928,2593.1,2593.0,0.277]
[1751573829380,0.1928,2593.1,2593.0,0.277]
[1751573829759,7.8,2593.1,2593.0,0.277]
[1751573830983,9.699,2593.2,2593.0,0.277]
[1751573831553,9.699,2593.2,2593.0,4.13352271]
[1751573831869,7.8,2593.2,2593.0,4.13352271]
[1751573832071,7.8,2593.2,2593.0,0.277]
[1751573835301,7.9928,2593.2,2593.0,0.02]
[1751573835474,11.84911477,2593.2,2593.0,0.02]
[1751573837010,4.04911477,2593.2,2593.0,0.02]
[1751573837188,13.74811477,2593.2,2593.0,0.02]
[1751573839608,3.8563881,2593.1,2593.0,0.02]
[1751573840380,4.78156327,2593.1,2593.0,0.02]
[1751573841612,0.92517517,2593.1,2593.0,4.13353682]
[1751573841902,7.8,2593.1,2593.0,0.277]
[1751573843790,9.8918,2593.2,2593.0,0.277]
[1751573845606,3.8563881,2593.1,2593.0,0.02]
[1751573846512,13.74812571,2593.2,2593.0,0.02]
[1751573847412,3.8563881,2593.1,2593.0,0.02]
[1751573847583,13.74813972,2593.2,2593.0,0.02]
[1751573849719,9.8918,2593.2,2593.0,0.02]
[1751573852714,9.8918,2593.2,2593.0,3.87652092]
[1751573852715,0.1928,2593.2,2593.0,3.87652092]
[1751573852914,9.698,2593.1,2593.0,3.87652092]
[1751573853530,9.698,2593.1,2593.0,0.02]
[1751573854033,9.698,2593.1,2593.0,3.87653682]
[1751573855832,0.01,2593.4,2593.3,0.257]
[1751573856032,0.01,2593.4,2593.3,4.11309069]
[1751573856212,0.01,2593.4,2593.3,12.66833]
[1751573856407,0.01,2593.4,2593.3,12.6297691]
[1751573856611,0.01,2593.4,2593.3,13.3297691]
[1751573856809,0.01,2593.4,2593.3,23.3297691]
[1751573857000,0.01,2594.1,2594.0,4.11205011]
[1751573857204,0.01,2594.1,2594.0,12.43672852]
[1751573857435,0.01,2594.1,2594.0,12.62872852]
[1751573860637,0.01,2594.1,2594.0,12.92200535]
[1751573865754,0.01,2594.1,2594.0,13.11201919]
[1751573866249,0.01,2594.1,2594.0,23.11201919]
[1751573866822,0.01,2594.1,2594.0,22.92200535]
[1751573867858,0.01,2594.5,2594.4,12.43613416]
[1751573868060,0.01,2594.5,2594.4,20.42313416]
[1751573871352,0.01,2594.5,2594.4,30.42313416]
[1751573873284,0.01,2594.5,2594.4,35.19313416]
[1751573877290,0.01,2594.5,2594.4,30.42313416]
[1751573877659,0.01,2594.5,2594.4,22.09845575]
[1751573877855,0.01,2594.5,2594.4,30.42313416]
[1751573888095,0.01,2594.5,2594.4,35.19313416]
[1751573889216,0.01,2594.5,2594.4,35.18913416]
[1751573901705,0.01,2594.6,2594.4,35.18913416]
[1751573901706,0.01,2594.6,2594.5,3.85430718]
[1751573902032,0.01,2595.2,2595.1,3.85341605]
[1751573902205,0.01,2595.2,2595.1,24.96862862]
[1751573902543,0.01,2595.2,2595.1,16.60541605]
[1751573905927,0.01,2595.2,2595.1,24.93009446]
[1751573907607,0.01,2595.2,2595.1,25.18709446]
[1751573908636,0.01,2595.2,2595.1,35.18709446]
[1751573908938,1e-08,2595.2,2595.1,35.18709446]
[1751573926965,1e-08,2595.2,2595.1,27.39709446]
[1751573927171,1e-08,2595.2,2595.1,37.07909446]
[1751573929465,1e-08,2595.2,2595.1,29.29209446]
[1751573929663,1e-08,2595.2,2595.1,37.07809446]
[1751573930768,1e-08,2595.2,2595.1,26.60141605]
[1751573932475,1e-08,2595.2,2595.1,18.81541605]
[1751573932678,1e-08,2595.2,2595.1,16.60141605]
[1751573933247,0.75260001,2595.2,2595.1,8.81541605]
[1751573933581,0.75260001,2595.2,2595.1,0.192]
[1751573933744,0.75260001,2595.2,2595.0,0.192]
[1751573933948,1.21317396,2595.2,2595.1,7.786]
[1751573934242,4.68381605,2595.1,2595.0,0.192]
[1751573934442,0.8304,2595.0,2594.7,0.192]
[1751573934858,0.8304,2595.0,2594.8,3.85385792]
[1751573935085,0.8304,2595.0,2594.7,0.192]
[1751573935593,0.8304,2594.9,2594.7,0.192]
[1751573935981,0.8304,2594.9,2594.2,3.85469155]
[1751573935982,0.8304,2594.6,2594.2,3.85469155]
[1751573936173,0.8304,2594.6,2594.3,11.87114877]
[1751573936496,0.8304,2594.6,2594.4,3.85445571]
[1751573936992,0.8304,2594.6,2594.3,4.08507545]
[1751573939202,0.8304,2594.6,2594.4,3.85442987]
[1751573939377,0.8304,2594.6,2594.5,3.85430718]
[1751573941467,0.8304,2594.6,2594.5,11.83430718]
[1751573941894,0.7976,2595.1,2594.9,3.8536516]
[1751573942099,0.7976,2595.1,2595.0,3.85356454]
[1751573942322,1.08606,2595.1,2595.0,3.85356454]
[1751573943726,0.7976,2595.1,2595.0,3.85356454]
[1751573951530,1e-08,2595.2,2595.1,3.85341605]
[1751573951931,1e-08,2595.2,2595.1,3.89195021]
[1751573952128,1e-08,2595.2,2595.1,11.67895021]
[1751573952296,1e-08,2595.2,2595.1,11.64041605]
[1751573952626,1e-08,2595.2,2595.1,19.96509446]
[1751573956143,1e-08,2595.2,2595.1,29.96509446]
[1751573957447,1e-08,2595.2,2595.1,30.22209446]
[1751573963128,1e-08,2595.2,2595.1,22.43509446]
[1751573963327,1e-08,2595.2,2595.1,32.11509446]
[1751573964158,1e-08,2595.2,2595.1,32.15299446]
[1751573965134,1e-08,2595.2,2595.1,32.11509446]
[1751573965329,1e-08,2595.2,2595.1,22.43509446]
[1751573965530,0.01,2595.6,2595.5,3.85282219]
[1751573965753,0.01,2595.6,2595.5,16.40782219]
[1751573965935,0.01,2595.6,2595.5,16.59982219]
[1751573968562,0.8321,2595.6,2595.5,16.59982219]
[1751573973961,0.8321,2595.6,2595.5,8.81482219]
[1751573974164,0.8321,2595.6,2595.5,16.59982219]
[1751573985282,0.8321,2595.6,2595.5,16.61982219]
[1751573986275,0.01,2595.6,2595.5,16.61982219]
[1751573986673,0.01,2595.6,2595.5,26.61982219]
[1751573990566,0.01,2595.6,2595.5,26.61882219]
[1751573995700,0.01,2595.6,2595.5,26.61782219]
[1751573996507,0.01,2595.6,2595.5,16.61782219]
[1751573997187,0.01,2595.6,2595.5,26.61782219]
[1751573997506,0.01,2595.6,2595.5,27.44932219]
[1751574000413,0.01,2595.6,2595.5,19.66632219]
[1751574000610,0.01,2595.6,2595.5,26.61782219]
[1751574000808,0.01,2595.6,2595.5,18.83482219]
[1751574001016,0.01,2595.6,2595.5,26.61782219]
[1751574001521,0.01,2595.6,2595.5,16.61782219]
[1751574013930,0.01,2595.6,2595.5,17.31782219]
[1751574018162,0.01,2595.7,2595.6,13.85267375]
[1751574021240,0.01,2595.7,2595.6,18.62267375]
[1751574024966,1e-08,2595.8,2595.7,13.85252533]
[1751574025167,1e-08,2596.1,2596.0,13.85208012]
[1751574025368,1e-08,2596.1,2596.0,29.95775853]
[1751574025569,1e-08,2596.1,2596.0,30.14975853]
[1751574026867,1e-08,2596.1,2596.0,30.90975853]
[1751574027656,0.01,2596.7,2596.6,3.85119001]
[1751574027986,0.01,2596.7,2596.6,37.37986842]
[1751574028185,0.01,2596.7,2596.6,37.57186842]
[1751574029171,0.01,2596.7,2596.6,37.57486842]
[1751574029381,0.01,2596.7,2596.6,37.77164291]
[1751574029767,1e-08,2596.7,2596.6,37.77164291]
[1751574030500,1e-08,2596.7,2596.6,38.32164291]
[1751574031483,1e-08,2596.7,2596.6,38.61703575]
[1751574032609,1e-08,2596.7,2596.6,30.29235734]
[1751574033318,1e-08,2596.7,2596.6,28.97835734]
[1751574033636,1e-08,2596.7,2596.6,19.10858285]
[1751574033777,1e-08,2596.7,2596.6,28.78058285]
[1751574033977,1e-08,2596.7,2596.6,9.10858285]
[1751574034181,1e-08,2596.7,2596.6,4.962]
[1751574034386,0.76270001,2596.7,2596.6,12.744]
[1751574035001,0.76270001,2596.7,2596.6,16.59519001]
[1751574035282,0.76270001,2596.7,2596.6,16.59619001]
[1751574035515,0.76270001,2596.7,2596.6,4.962]
[1751574035683,1.22504848,2596.7,2596.6,0.192]
[1751574035880,0.7627,2596.6,2596.3,3.85156895]
[1751574036187,0.7627,2596.6,2596.5,0.192]
[1751574036515,0.7627,2596.6,2596.5,7.975]
[1751574036718,5.07312208,2596.6,2596.5,0.192]
[1751574036920,4.66159001,2596.6,2596.5,7.784]
[1751574038798,4.66159001,2596.6,2596.4,7.784]
[1751574039335,12.99897836,2596.5,2596.3,0.192]
[1751574039534,0.8229,2596.1,2595.8,1.892]
[1751574039714,3.85205817,2596.1,2595.9,0.192]
[1751574039932,3.85178482,2596.2,2595.9,7.786]
[1751574039933,4.67498012,2596.0,2595.9,7.786]
[1751574040117,4.67512851,2595.9,2595.8,7.978]
[1751574040433,4.67512851,2595.9,2595.8,0.192]
[1751574040619,4.67512851,2595.9,2595.7,7.786]
[1751574040620,0.8229,2595.8,2595.7,7.786]
[1751574041403,0.8229,2595.8,2595.7,11.63852533]
[1751574042937,0.8229,2595.8,2595.7,7.786]
[1751574044104,4.67535994,2595.8,2595.6,0.192]
[1751574044306,5.52818691,2595.7,2595.6,0.192]
[1751574044541,5.52818691,2595.7,2595.5,0.02]
[1751574044542,4.67557375,2595.6,2595.5,0.02]
[1751574048351,13.00025216,2595.6,2595.5,0.02]
[1751574048563,23.55025216,2595.6,2595.5,0.02]
[1751574050157,27.55025216,2595.6,2595.5,0.02]
[1751574050356,31.39914464,2595.6,2595.5,0.02]
[1751574053154,27.39914464,2595.6,2595.5,0.02]
[1751574054173,28.76346623,2595.6,2595.5,0.02]
[1751574055857,32.76346623,2595.6,2595.5,0.02]
[1751574056391,19.07446623,2595.6,2595.5,0.02]
[1751574056586,28.76246623,2595.6,2595.5,0.02]
[1751574059467,32.76246623,2595.6,2595.5,0.02]
[1751574061866,30.31246623,2595.6,2595.5,0.02]
[1751574062497,4.8229,2595.6,2595.5,0.02]
[1751574062663,8.86757375,2595.6,2595.5,0.02]
[1751574062863,4.0,2595.6,2595.5,3.87282219]
[1751574063069,12.46619929,2596.1,2595.5,0.7765]
[1751574063264,4.04412243,2596.0,2595.5,0.9685]
[1751574063569,4.04412243,2596.0,2595.6,3.85266225]
[1751574063768,4.04412243,2596.0,2595.5,0.9685]
[1751574063769,4.04412243,2596.0,2595.5,4.82123851]
[1751574064170,4.04412243,2596.0,2595.6,3.85264548]
[1751574064479,4.04412243,2596.0,2595.5,4.82124964]
[1751574065292,4.04412243,2596.0,2595.6,3.85265212]
[1751574066399,4.04412243,2596.0,2595.5,0.9685]
[1751574066400,0.8202,2596.1,2595.7,3.85245896]
[1751574066586,0.8202,2596.1,2595.7,4.04445896]
[1751574069076,4.67219977,2596.1,2595.7,0.192]
[1751574070089,0.8202,2596.1,2595.7,4.04451613]
[1751574071113,0.8202,2596.1,2595.7,4.04444779]
[1751574071607,0.8202,2596.1,2595.8,0.5]
[1751574072416,0.8202,2596.1,2595.8,4.35235659]
[1751574072818,1.10657293,2596.2,2595.8,4.35235659]
[1751574073125,0.192,2596.2,2595.8,4.35235659]
[1751574073284,1.10672304,2596.2,2595.8,4.35235659]
[1751574073483,4.95852006,2596.2,2595.8,4.35235659]
[1751574073801,4.95852006,2596.2,2595.8,0.5]
[1751574073802,4.04386754,2596.2,2595.8,0.5]
[1751574074315,0.192,2596.2,2595.8,4.35236116]
[1751574074913,4.04379392,2596.2,2595.8,4.35236116]
[1751574075586,4.04379392,2596.2,2595.8,0.5]
[1751574078521,3.85193969,2596.1,2595.8,0.5]
[1751574078820,0.192,2596.2,2595.8,0.5]
[1751574079023,3.85210428,2596.0,2595.8,0.5]
[1751574079918,4.04384783,2596.2,2595.8,0.5]
[1751574080120,3.85194867,2596.1,2595.8,0.5]
[1751574080909,3.85211087,2596.0,2595.8,0.5]
[1751574081089,3.85201734,2596.1,2595.8,0.5]
[1751574082614,3.85213713,2596.0,2595.8,0.5]
[1751574083492,3.85202023,2596.1,2595.8,0.5]
[1751574084594,3.85210646,2596.0,2595.8,0.5]
[1751574087224,4.04383929,2596.2,2595.8,4.35236247]
[1751574087525,4.95972261,2596.2,2595.8,0.5]
[1751574087741,0.192,2596.2,2595.9,3.85220646]
[1751574087896,0.192,2596.2,2595.9,0.7667]
[1751574088224,1.10812777,2596.2,2595.9,0.7667]
[1751574088524,4.95998395,2596.2,2595.9,0.7667]
[1751574088726,4.04385618,2596.2,2595.9,0.7667]
[1751574089199,1.10848457,2596.2,2595.9,0.7667]
[1751574089399,0.192,2596.2,2595.9,0.7667]
[1751574089616,0.91648457,2596.3,2595.9,0.7667]
[1751574089816,0.91648457,2596.3,2595.9,4.81082927]
[1751574090024,4.7681277,2596.3,2595.9,4.81082927]
[1751574091239,3.85164313,2596.3,2595.9,4.81082927]
[1751574091440,11.82757689,2596.4,2595.9,4.81082927]
[1751574091615,0.80350001,2596.7,2595.9,0.80522228]
[1751574091818,1e-08,2596.7,2596.3,3.85150897]
[1751574092124,1e-08,2596.7,2596.5,3.85122267]
[1751574095152,1e-08,2596.7,2596.4,4.08191966]
[1751574096737,1e-08,2596.7,2596.5,3.85132429]
[1751574097343,1e-08,2596.7,2596.6,4.65739001]
[1751574097552,1e-08,2596.7,2596.6,4.69590191]
[1751574097753,1e-08,2596.7,2596.6,4.88790191]
[1751574100058,1e-08,2596.7,2596.6,4.84939001]
[1751574100465,1e-08,2596.7,2596.6,12.63139001]
[1751574101277,1e-08,2596.7,2596.6,0.192]
[1751574101564,1e-08,2596.7,2596.6,4.04319001]
[1751574101944,1e-08,2596.7,2596.6,4.08170191]
[1751574102363,1e-08,2596.7,2596.6,4.87710191]
[1751574102567,1e-08,2596.7,2596.6,13.20178032]
[1751574102735,1e-08,2596.7,2596.6,13.16326842]
[1751574103059,1e-08,2596.7,2596.6,4.83859001]
[1751574103232,1e-08,2596.7,2596.6,4.87710191]
[1751574103662,1e-08,2596.7,2596.6,14.87710191]
[1751574103860,1e-08,2596.7,2596.6,14.83859001]
[1751574115601,1e-08,2596.7,2596.6,0.192]
[1751574115886,1e-08,2596.7,2596.6,11.82519001]
[1751574119679,1e-08,2596.7,2596.6,4.04319001]
[1751574119897,1e-08,2596.7,2596.6,11.82419001]
[1751574120993,1e-08,2596.7,2596.6,7.973]
[1751574121401,1e-08,2596.7,2596.6,11.82419001]
[1751574123693,1e-08,2596.7,2596.6,7.973]
[1751574124481,1e-08,2596.7,2596.6,11.82419001]
[1751574128873,1e-08,2596.7,2596.6,0.192]
[1751574129073,1e-08,2596.7,2596.6,7.972]
[1751574129499,1e-08,2596.7,2596.6,11.82319001]
[1751574130905,1e-08,2596.7,2596.6,4.04319001]
[1751574131203,1e-08,2596.7,2596.6,0.192]
[1751574131505,1e-08,2596.7,2596.6,4.04319001]
[1751574146384,1e-08,2596.7,2596.6,4.08170191]
[1751574157139,1e-08,2596.7,2596.6,8.85170191]
[1751574157429,1e-08,2596.7,2596.6,8.81319001]
[1751574163133,1e-08,2596.7,2596.6,4.04319001]
[1751574163322,1e-08,2596.7,2596.6,4.08170191]
[1751574164660,1e-08,2596.7,2596.6,11.82219001]
[1751574164933,1e-08,2596.7,2596.6,4.04319001]
[1751574183688,0.48756349,2596.7,2596.6,0.192]
[1751574184158,0.48756349,2596.7,2596.6,4.04319001]
[1751574184365,1e-08,2596.7,2596.6,4.04319001]
[1751574198871,1e-08,2596.7,2596.6,0.192]
[1751574199078,12.97126226,2596.7,2596.6,0.192]
[1751574199279,14.84839001,2596.6,2596.5,0.02]
[1751574199480,18.2007563,2596.6,2596.5,0.02]
[1751574199667,22.01523816,2596.6,2596.5,0.02]
[1751574200057,22.01523816,2596.6,2596.5,0.0598]
[1751574200770,0.7925,2595.7,2595.5,0.02]
[1751574200972,4.04467375,2595.6,2595.5,0.02]
[1751574201765,0.192,2595.6,2595.5,0.02]
[1751574201983,2.67015617,2595.6,2595.5,0.02]
[1751574203288,6.52282992,2595.6,2595.5,0.02]
[1751574203784,14.83785047,2595.6,2595.5,0.02]
[1751574203989,15.58945047,2595.6,2595.5,0.02]
[1751574206091,23.36845047,2595.6,2595.5,0.02]
[1751574208389,27.36845047,2595.6,2595.5,0.02]
[1751574208980,27.91845047,2595.6,2595.5,0.02]
[1751574210676,20.13945047,2595.6,2595.5,0.02]
[1751574210879,29.81145047,2595.6,2595.5,0.02]
[1751574215707,20.13945047,2595.6,2595.5,0.02]
[1751574216029,29.81145047,2595.6,2595.5,0.02]
[1751574219517,11.27442992,2595.6,2595.5,0.02]
[1751574219705,20.94742992,2595.6,2595.5,0.02]
[1751574220277,29.26245047,2595.6,2595.5,0.02]
[1751574221590,19.58945047,2595.6,2595.5,0.02]
[1751574221791,29.26145047,2595.6,2595.5,0.02]
[1751574222194,25.26145047,2595.6,2595.5,0.02]
[1751574222733,16.94742992,2595.6,2595.5,0.02]
[1751574225532,7.27442992,2595.6,2595.5,0.02]
[1751574225721,16.94642992,2595.6,2595.5,0.02]
[1751574226705,20.94642992,2595.6,2595.5,0.02]
[1751574227040,11.27442992,2595.6,2595.5,0.02]
[1751574227243,20.94642992,2595.6,2595.5,0.02]
[1751574228146,21.86169302,2595.6,2595.5,0.02]
[1751574230108,30.17671357,2595.6,2595.5,0.02]
[1751574232636,22.39671357,2595.6,2595.5,0.02]
[1751574232943,30.17671357,2595.6,2595.5,0.02]
[1751574233145,21.86169302,2595.6,2595.5,0.02]
[1751574236575,21.86069302,2595.6,2595.5,0.02]
[1751574243357,11.43809302,2595.6,2595.5,0.02]
[1751574243523,5.1072631,2595.6,2595.5,0.02]
[1751574243728,11.779,2595.6,2595.5,0.8145]
[1751574243928,12.6942631,2595.6,2595.5,0.8145]
[1751574244540,8.6942631,2595.6,2595.5,0.8145]
[1751574244860,8.6942631,2595.6,2595.5,4.66732219]
[1751574245159,8.6942631,2595.6,2595.5,0.8145]
[1751574247267,7.779,2595.6,2595.5,0.8145]
[1751574247785,0.192,2595.8,2595.6,3.8526668]
[1751574248062,7.779,2595.7,2595.5,0.8145]
[1751574248428,4.04438182,2595.8,2595.5,0.8145]
[1751574248628,7.779,2595.7,2595.5,0.8145]
[1751574249435,7.779,2595.7,2595.5,0.02]
[1751574249436,11.63154233,2595.7,2595.5,0.02]
[1751574249650,3.85267375,2595.6,2595.5,0.02]
[1751574250252,13.38829649,2595.7,2595.5,0.02]
[1751574250464,3.85267375,2595.6,2595.5,0.02]
[1751574251248,13.91298869,2595.6,2595.5,0.02]
[1751574252877,17.91298869,2595.6,2595.5,0.02]
[1751574253047,21.04311721,2595.6,2595.5,0.02]
[1751574253876,12.72809666,2595.6,2595.5,0.02]
[1751574254068,22.39709666,2595.6,2595.5,0.02]
[1751574254244,18.39709666,2595.6,2595.5,0.02]
[1751574257688,8.72809666,2595.6,2595.5,0.02]
[1751574257895,18.39709666,2595.6,2595.5,0.02]
[1751574259151,0.91509439,2595.6,2595.5,0.02]
[1751574259351,0.192,2596.0,2595.7,0.8166]
[1751574259587,0.192,2596.0,2595.7,4.66912533]
[1751574259588,4.0,2595.8,2595.7,4.66912533]
[1751574260185,7.778,2595.9,2595.7,0.8166]
[1751574260583,7.778,2595.8,2595.7,0.8166]
[1751574260882,7.778,2595.8,2595.5,0.212]
[1751574261087,11.63028521,2595.9,2595.5,0.212]
[1751574261258,11.63028521,2595.9,2595.5,4.06480607]
[1751574262490,11.63028521,2595.9,2595.5,0.212]
[1751574263168,11.63028521,2595.9,2595.5,4.06481289]
[1751574263486,7.778,2595.9,2595.5,4.06481289]
[1751574263681,11.63025513,2595.9,2595.5,4.06481289]
[1751574263884,7.778,2595.9,2595.5,4.06481289]
[1751574265190,7.778,2595.9,2595.6,3.85262702]
[1751574267290,1.10550001,2596.0,2595.5,4.06481289]